fUST/lending_fUST_20260413
["ID","MTS","AMOUNT","RATE_DAILY","PERIOD"]
[420382716,1776054632203,-303.861,9.999e-05,2]
[420382718,1776054632231,-300.0,9.999e-05,2]
[420382720,1776054632247,-1200.0,9.999e-05,2]
[420382721,1776054632278,-2830.64794411,0.0001,2]
[420382724,1776054632289,-1088.06501484,0.0001,2]
[420382726,1776054632322,-384.15552416,0.0001,2]
[420382729,1776054632361,-3736.89402465,0.0001,2]
[420382811,1776054638544,-7452.40311189,0.0001,2]
[420382816,1776054638819,-8507.83438035,0.0001,2]
[420382817,1776054638828,-300.0,0.00010072,2]
[420382818,1776054638842,-501.0538651,0.00010223,2]
[420382819,1776054638861,-420.0,0.00010999,2]
[420382820,1776054638870,-1680.0,0.00010999,2]
[420382821,1776054638885,-177.0,0.00011601,2]
[420382822,1776054638907,-3970.8437006,0.00012239,2]
[420382823,1776054638917,-327.57,0.00012329,2]
[420382824,1776054638930,-272.98,0.00012329,2]
[420382825,1776054638952,-227.48,0.00012329,2]
[420382826,1776054638962,-189.57,0.00012329,2]
[420382827,1776054638977,-157.97,0.00012329,2]
[420382828,1776054638987,-789.89,0.00012329,2]
[420382829,1776054639000,-334.887148,0.00013699,2]
[420382830,1776054639010,-1000.0,0.00013699,2]
[420382831,1776054639026,-252.78336829,0.00014811,2]
[420382832,1776054639042,-500.0,0.00014811,2]
[420382833,1776054639053,-500.0,0.00014811,2]
[420382834,1776054639066,-500.0,0.00014811,2]
[420382835,1776054639083,-500.0,0.00014811,2]
[420382836,1776054639094,-500.0,0.00014811,2]
[420382837,1776054639109,-500.0,0.00014811,2]
[420382838,1776054639119,-356.07368033,0.00014811,2]
[420382839,1776054639140,-500.0,0.00014811,2]
[420382840,1776054639154,-500.0,0.00014811,2]
[420382841,1776054639171,-500.0,0.00014811,2]
[420382842,1776054639189,-500.0,0.00014811,2]
[420382843,1776054639205,-500.0,0.00014811,2]
[420382844,1776054639223,-624.15580854,0.00014811,2]
[420382845,1776054639237,-500.0,0.00014811,2]
[420382846,1776054639251,-500.0,0.00014811,2]
[420382847,1776054639275,-500.0,0.00014811,2]
[420382848,1776054639286,-500.0,0.00014811,2]
[420382849,1776054639309,-500.0,0.00014811,2]
[420382850,1776054639322,-500.0,0.00014811,2]
[420382851,1776054639333,-500.0,0.00014811,2]
[420382852,1776054639361,-500.0,0.00014811,2]
[420382853,1776054639373,-624.3174975,0.00014811,2]
[420382854,1776054639405,-500.0,0.00014811,2]
[420382855,1776054639417,-500.0,0.00014811,2]
[420382856,1776054639450,-500.0,0.00014811,2]
[420382857,1776054639470,-500.0,0.00014811,2]
[420382858,1776054639498,-500.0,0.00014811,2]
[420382859,1776054639515,-630.20331001,0.00014811,2]
[420382860,1776054639547,-500.0,0.00014811,2]
[420382861,1776054639567,-500.0,0.00014811,2]
[420382862,1776054639589,-500.0,0.00014811,2]
[420382863,1776054639607,-500.0,0.00014811,2]
[420382865,1776054639621,-500.0,0.00014811,2]
[420382867,1776054639639,-500.0,0.00014811,2]
[420382868,1776054639651,-500.0,0.00014811,2]
[420382870,1776054639661,-500.0,0.00014811,2]
[420382871,1776054639678,-500.0,0.00014811,2]
[420382872,1776054639691,-500.0,0.00014811,2]
[420382873,1776054639705,-500.0,0.00014811,2]
[420382874,1776054639720,-500.0,0.00014811,2]
[420382875,1776054639734,-500.0,0.00014811,2]
[420382876,1776054639748,-500.0,0.00014811,2]
[420382877,1776054639766,-500.0,0.00014811,2]
[420382878,1776054639778,-500.0,0.00014811,2]
[420382879,1776054639794,-500.0,0.00014811,2]
[420382880,1776054639817,-500.0,0.00014811,2]
[420382881,1776054639827,-500.0,0.00014811,2]
[420382882,1776054639842,-500.0,0.00014811,2]
[420382883,1776054639865,-500.0,0.00014811,2]
[420382884,1776054639877,-500.0,0.00014812,2]
[420382885,1776054639886,-202.60060403,0.00014812,2]
[420382886,1776054639921,-500.0,0.00014812,2]
[420382887,1776054639931,-500.0,0.00014812,2]
[420382888,1776054639974,-500.0,0.00014812,2]
[420382889,1776054640012,-500.0,0.00014812,2]
[420382890,1776054640026,-500.0,0.00014812,2]
[420382891,1776054640066,-500.0,0.00014812,2]
[420382892,1776054640081,-500.0,0.00014812,2]
[420382893,1776054640108,-500.0,0.00014812,2]
[420382894,1776054640119,-500.0,0.00014812,2]
[420382895,1776054640145,-194.43546351,0.00014812,2]
[420382898,1776054640159,-616.78612981,0.00014812,2]
[420382899,1776054640187,-500.0,0.00014812,2]
[420382900,1776054640202,-500.0,0.00014812,2]
[420382901,1776054640227,-500.0,0.00014812,2]
[420382902,1776054640245,-500.0,0.00014812,2]
[420382903,1776054640264,-500.0,0.00014812,2]
[420382904,1776054640287,-500.0,0.00014812,2]
[420382905,1776054640299,-500.0,0.00014812,2]
[420382906,1776054640310,-650.0,0.00014812,2]
[420382907,1776054640325,-500.0,0.00014812,2]
[420382908,1776054640337,-10603.43242553,0.00014813,2]
[420382909,1776054640351,-977.39074962,0.00014813,2]
[420382961,1776054641230,-591.51813598,9.9e-05,2]
[420382963,1776054641241,-3908.43393332,9.9e-05,2]
[420382969,1776054641296,-379.72335834,9.9e-05,2]
[420382971,1776054641316,-120.32457236,9.9e-05,2]
[420382973,1776054641331,-435.68467895,0.00014813,2]
[420382996,1776054643474,-379.08546997,0.00014813,2]
[420382997,1776054643495,-2443.43187919,0.00014813,2]
[420382998,1776054643634,-4133.93835324,0.00014813,2]
[420382999,1776054643645,-1317.89139505,0.00014813,2]
[420383004,1776054646827,-253.7425319,0.00014811,2]
[420383005,1776054646840,-246.2574681,0.00014811,2]
[420383006,1776054646859,-500.0,0.00014811,2]
[420383007,1776054646871,-502.70751272,0.00014811,2]
[420383008,1776054646884,-500.0,0.00014811,2]
[420383009,1776054646902,-500.0,0.00014811,2]
[420383010,1776054646918,-209.85012117,0.00014811,2]
[420383011,1776054646941,-500.0,0.00014811,2]
[420383012,1776054646965,-500.0,0.00014811,2]
[420383013,1776054646986,-500.0,0.00014811,2]
[420383014,1776054647020,-400.0,0.00014811,2]
[420383015,1776054647056,-500.0,0.00014811,2]
[420383016,1776054647088,-500.0,0.00014811,2]
[420383017,1776054647110,-500.0,0.00014811,2]
[420383018,1776054647130,-500.0,0.00014811,2]
[420383019,1776054647146,-500.0,0.00014811,2]
[420383020,1776054647158,-500.0,0.00014811,2]
[420383021,1776054647182,-500.0,0.00014811,2]
[420383023,1776054647199,-500.0,0.00014811,2]
[420383024,1776054647217,-500.0,0.00014811,2]
[420383025,1776054647227,-500.0,0.00014811,2]
[420383026,1776054647245,-1839.30197836,0.00014813,2]
[420383027,1776054647265,-16095.28985889,0.00014813,2]
[420383058,1776055832346,-4684.99999997,6.203e-05,2]
[420383067,1776055832451,-315.00000003,6.203e-05,2]
[420383069,1776055832461,-509.0,6.203e-05,2]
[420383071,1776055832480,-43.77929067,6.266e-05,2]
[420383149,1776055838731,-677.39378888,6.266e-05,2]
[420383150,1776055838922,-478.82692045,6.266e-05,2]
[420383152,1776055838949,-285.9657394,6.299e-05,2]
[420383153,1776055838966,-164.638454,6.526e-05,2]
[420383154,1776055838983,-1680.0,6.893e-05,2]
[420383155,1776055838998,-164.638454,7.179e-05,2]
[420383157,1776055839011,-164.638454,7.831e-05,2]
[420383159,1776055839031,-250.0,8.281e-05,2]
[420383160,1776055839047,-164.638454,8.484e-05,2]
[420383161,1776055839063,-164.638454,9.136e-05,2]
[420383162,1776055839080,-164.638454,9.789e-05,2]
[420383163,1776055839092,-164.638454,0.00010442,2]
[420383164,1776055839106,-182.835424,0.00010522,2]
[420383165,1776055839123,-164.638454,0.00011094,2]
[420383166,1776055839135,-164.638454,0.00011747,2]
[420383167,1776055839148,-164.638454,0.00012399,2]
[420383168,1776055839165,-182.835424,0.00012736,2]
[420383169,1776055839178,-164.638454,0.00013052,2]
[420383170,1776055839191,-209.05597983,0.00013206,2]
[420383171,1776055839206,-1000.0,0.00013699,2]
[420383172,1776055839220,-322.494,0.00013816,2]
[420383173,1776055839230,-337.28314958,0.00013816,2]
[420383174,1776055839243,-500.0,0.00013816,2]
[420383175,1776055839255,-428.45263115,0.00013816,2]
[420383176,1776055839267,-500.0,0.00013816,2]
[420383177,1776055839277,-610.68410013,0.00013816,2]
[420383178,1776055839291,-67.96333495,0.00013816,2]
[420383201,1776055843803,-396.54944253,0.00013816,2]
[420383203,1776055844105,-35.48722252,0.00013816,2]
[420383204,1776055844207,-324.18179255,0.00013816,2]
[420383205,1776055844383,-175.81820745,0.00013816,2]
[420383206,1776055844591,-500.0,0.00013816,2]
[420383207,1776055844720,-500.0,0.00013816,2]
[420383208,1776055844734,-500.0,0.00013816,2]
[420383209,1776055844757,-340.28907265,0.00013816,2]
[420383210,1776055844808,-302.51060305,0.00013816,2]
[420383211,1776055844855,-197.48939695,0.00013816,2]
[420383212,1776055844865,-500.0,0.00013816,2]
[420383213,1776055844907,-500.0,0.00013816,2]
[420383214,1776055844918,-500.0,0.00013816,2]
[420383215,1776055844933,-331.71848162,0.00013816,2]
[420383217,1776055846888,-168.28151838,0.00013816,2]
[420383218,1776055846900,-221.12308544,0.00013816,2]
[420383219,1776055846914,-500.0,0.00013816,2]
[420383220,1776055846935,-5544.80253757,0.00013817,2]
[420383221,1776055846953,-18073.15783984,0.00013817,2]
[420383222,1776055846977,-355.415,0.00013817,2]
[420383223,1776055846989,-25067.50434319,0.00013817,2]
[420383224,1776055847008,-243.6622926,0.00014003,2]
[420383225,1776055847027,-6034.25133436,0.00014409,2]
[420383317,1776057041606,-841.52588397,0.00011052,2]
[420383363,1776057042472,-4158.47411603,0.00011052,2]
[420383365,1776057042482,-575.0,0.00011052,2]
[420383366,1776057042501,-215.54555892,0.00011509,2]
[420383369,1776057042516,-1200.0,0.00012405,2]
[420383370,1776057042531,-300.0,0.00013412,2]
[420383372,1776057042542,-640.08032505,0.00013413,2]
[420383373,1776057042555,-899.02365167,0.00013413,2]
[420383378,1776057042628,-1574.80290298,0.00013413,2]
[420383381,1776057042638,-164.9794148,0.00013413,2]
[420383382,1776057042670,-284.06299722,0.00013522,2]
[420383415,1776057043922,-362.19320278,0.00013522,2]
[420383416,1776057043944,-36.43144534,0.00013547,2]
[420383442,1776057047857,-157.80619157,0.00013547,2]
[420383443,1776057047874,-776.17359711,0.00013547,2]
[420383444,1776057047893,-1680.0,0.00013646,2]
[420383445,1776057047903,-1000.0,0.00013699,2]
[420383446,1776057047920,-151.40829506,0.00014,2]
[420383447,1776057047936,-167.443574,0.00014091,2]
[420383448,1776057047947,-976.43907147,0.00014204,2]
[420383449,1776057047961,-1913.96683933,0.00014304,2]
[420383450,1776057047975,-6404.35463559,0.000144,2]
[420383451,1776057047990,-7831.82252902,0.000144,2]
[420383452,1776057048006,-984.7182516,0.000144,2]
[420383502,1776058231914,-540.06654453,0.00010819,2]
[420383504,1776058231929,-438.23496928,0.00010819,2]
[420383507,1776058231946,-4021.69848619,0.00010819,2]
[420383509,1776058231955,-5000.0,0.00010928,2]
[420383511,1776058231967,-573.0,0.00010928,2]
[420383512,1776058231991,-1200.0,0.00011037,2]
[420383515,1776058232002,-300.0,0.00011374,2]
[420383517,1776058232018,-651.24,0.00012329,2]
[420383518,1776058232037,-1000.0,0.00013699,2]
[420383520,1776058232047,-1417.06151381,0.00013754,2]
[420383522,1776058232073,-908.06644971,0.00013754,2]
[420383525,1776058232090,-372.19726721,0.00013754,2]
[420383527,1776058232123,-354.28787607,0.00013754,2]
[420383530,1776058232142,-4287.2149252,0.00013754,2]
[420383532,1776058232154,-152.0,0.00013982,7]
[420383535,1776058232168,-152.0,0.00014006,7]
[420383538,1776058232178,-152.0,0.00014016,7]
[420383541,1776058232194,-405.29367291,0.000143,2]
[420383545,1776058232213,-813.51143665,0.000143,2]
[420383548,1776058232222,-537.6845,0.00014391,2]
[420383551,1776058232245,-2150.738,0.00014391,2]
[420383553,1776058232258,-567.65446837,0.00014399,2]
[420383556,1776058232271,-500.0,0.00014399,2]
[420383558,1776058232293,-500.0,0.00014399,2]
[420383560,1776058232303,-559.52508726,0.00014399,2]
[420383562,1776058232313,-260.35129038,0.00014399,2]
[420383564,1776058232339,-500.0,0.00014399,2]
[420383567,1776058232349,-436.10482446,0.00014399,2]
[420383569,1776058232368,-450.0,0.00014399,2]
[420383570,1776058232378,-500.0,0.00014399,2]
[420383572,1776058232387,-500.0,0.00014399,2]
[420383574,1776058232400,-500.0,0.00014399,2]
[420383576,1776058232413,-500.0,0.00014399,2]
[420383579,1776058232426,-500.0,0.00014399,2]
[420383581,1776058232435,-500.0,0.00014399,2]
[420383583,1776058232451,-500.0,0.00014399,2]
[420383584,1776058232467,-500.0,0.00014399,2]
[420383586,1776058232492,-437.2252036,0.00014399,2]
[420383588,1776058232501,-500.0,0.00014399,2]
[420383590,1776058232521,-500.0,0.00014399,2]
[420383592,1776058232535,-500.0,0.00014399,2]
[420383594,1776058232550,-300.0,0.00014399,2]
[420383596,1776058232561,-280.788148,0.00014399,2]
[420383598,1776058232575,-625.219126,0.00014399,2]
[420383600,1776058232585,-625.219126,0.00014399,2]
[420383602,1776058232601,-274.541706,0.00014399,2]
[420383604,1776058232616,-151.0,0.00014399,2]
[420383606,1776058232626,-8.82933655,0.00014399,2]
[420383702,1776058238362,-5000.0,0.00014255,2]
[420383703,1776058238377,-491.17066345,0.00014399,2]
[420383704,1776058238411,-625.219126,0.00014399,2]
[420383705,1776058238427,-151.0,0.00014399,2]
[420383706,1776058238499,-500.0,0.00014399,2]
[420383707,1776058238537,-625.219126,0.00014399,2]
[420383708,1776058238548,-151.0,0.00014399,2]
[420383709,1776058238571,-500.0,0.00014399,2]
[420383710,1776058238597,-151.0,0.00014399,2]
[420383711,1776058238607,-500.0,0.00014399,2]
[420383712,1776058238618,-205.225004,0.00014399,2]
[420383713,1776058238644,-205.225004,0.00014399,2]
[420383714,1776058238653,-205.225004,0.00014399,2]
[420383715,1776058238663,-151.0,0.00014399,2]
[420383716,1776058238686,-151.0,0.00014399,2]
[420383717,1776058238696,-205.225004,0.00014399,2]
[420383718,1776058238708,-151.0,0.00014399,2]
[420383719,1776058238729,-151.0,0.00014399,2]
[420383720,1776058238739,-204.647472,0.00014399,2]
[420383721,1776058238754,-204.647472,0.00014399,2]
[420383722,1776058238776,-21769.13758972,0.000144,2]
[420383723,1776058238786,-166.0,0.000144,2]
[420383724,1776058238796,-154.0,0.000144,2]
[420383725,1776058238835,-166.0,0.000144,2]
[420383726,1776058238845,-247.84097489,0.000144,2]
[420383727,1776058238855,-166.0,0.000144,2]
[420383728,1776058238895,-200.0,0.000144,2]
[420383729,1776058238905,-172.0,0.000144,2]
[420383730,1776058238915,-340.0,0.000144,2]
[420383731,1776058238937,-340.0,0.000144,2]
[420383732,1776058238949,-166.0,0.000144,2]
[420383733,1776058238959,-648.0,0.000144,2]
[420383734,1776058238974,-340.0,0.000144,2]
[420383735,1776058238986,-166.0,0.000144,2]
[420383736,1776058239000,-648.0,0.000144,2]
[420383737,1776058239015,-340.0,0.000144,2]
[420383738,1776058239025,-166.0,0.000144,2]
[420383739,1776058239038,-648.0,0.000144,2]
[420383740,1776058239050,-340.0,0.000144,2]
[420383741,1776058239074,-648.0,0.000144,2]
[420383742,1776058239083,-340.0,0.000144,2]
[420383743,1776058239096,-648.0,0.000144,2]
[420383744,1776058239118,-358.20188571,0.000144,2]
[420383745,1776058239127,-648.0,0.000144,2]
[420383746,1776058239142,-648.0,0.000144,2]
[420383747,1776058239163,-648.0,0.000144,2]
[420383748,1776058239176,-648.0,0.000144,2]
[420383749,1776058239188,-648.0,0.000144,2]
[420383750,1776058239209,-648.0,0.000144,2]
[420383751,1776058239224,-164.0,0.000144,2]
[420383752,1776058239233,-648.0,0.000144,2]
[420383754,1776058239267,-192.11864256,0.000144,2]
[420383756,1776058239276,-648.0,0.000144,2]
[420383758,1776058239294,-648.0,0.000144,2]
[420383760,1776058239311,-648.0,0.000144,2]
[420383761,1776058239321,-171.82451127,0.000144,2]
[420383763,1776058239338,-229.27185,0.000144,2]
[420383765,1776058239354,-229.27185,0.000144,2]
[420383766,1776058239364,-229.27185,0.000144,2]
[420383767,1776058239377,-229.27185,0.000144,2]
[420383768,1776058239394,-6686.424859,0.000144,2]
[420383769,1776058239408,-6686.424859,0.000144,2]
[420383770,1776058239420,-6686.424859,0.000144,2]
[420383771,1776058239433,-6686.424859,0.000144,2]
[420383772,1776058239449,-151.0,0.000144,2]
[420383773,1776058239459,-151.0,0.000144,2]
[420383774,1776058239472,-151.0,0.000144,2]
[420383775,1776058239502,-151.0,0.000144,2]
[420383776,1776058239516,-212.699311,0.000144,2]
[420383777,1776058239539,-212.699311,0.000144,2]
[420383779,1776058239549,-151.0,0.000144,2]
[420383781,1776058239562,-212.699311,0.000144,2]
[420383782,1776058239575,-532.519357,0.000144,2]
[420383783,1776058239596,-212.699311,0.000144,2]
[420383784,1776058239610,-151.0,0.000144,2]
[420383785,1776058239635,-532.519357,0.000144,2]
[420383786,1776058239662,-202.587087,0.000144,2]
[420383787,1776058239676,-532.519357,0.000144,2]
[420383788,1776058239700,-1620.280468,0.000144,2]
[420383789,1776058239709,-8361.199389,0.000144,2]
[420383790,1776058239725,-212.699311,0.000144,2]
[420383791,1776058239743,-532.519357,0.000144,2]
[420383792,1776058239753,-8361.199389,0.000144,2]
[420383793,1776058239788,-212.699311,0.000144,2]
[420383794,1776058239798,-8361.199389,0.000144,2]
[420383795,1776058239822,-532.519357,0.000144,2]
[420383796,1776058239833,-212.699311,0.000144,2]
[420383797,1776058239843,-8361.199389,0.000144,2]
[420383798,1776058239859,-212.699311,0.000144,2]
[420383799,1776058239871,-151.0,0.000144,2]
[420383800,1776058239888,-532.519357,0.000144,2]
[420383805,1776058240106,-532.519357,0.000144,2]
[420383806,1776058240116,-1620.280468,0.000144,2]
[420383807,1776058240132,-8361.199389,0.000144,2]
[420383808,1776058240143,-212.699311,0.000144,2]
[420383809,1776058240153,-532.519357,0.000144,2]
[420383810,1776058240169,-4348.56175517,0.000144,2]
[420383813,1776058240185,-1138.08360464,0.000144,2]
[420383814,1776058240205,-2874.55402919,0.000144,2]
[420383815,1776058240216,-8361.199389,0.000144,2]
[420383816,1776058240239,-532.519357,0.000144,2]
[420383817,1776058240248,-3885.1167883,0.000144,2]
[420383824,1776058240987,-151.0,0.00014399,2]
[420383825,1776058241006,-204.647472,0.00014399,2]
[420383826,1776058241016,-3506.26892336,0.000144,2]
[420383842,1776058246318,-1013.95575951,0.00014255,2]
[420383844,1776058246385,-151.0,0.00014399,2]
[420383847,1776058246408,-204.647472,0.00014399,2]
[420383848,1776058246419,-151.0,0.00014399,2]
[420383850,1776058246430,-151.0,0.00014399,2]
[420383852,1776058246463,-151.0,0.00014399,2]
[420383853,1776058246475,-969.81367734,0.000144,2]
[420383854,1776058246491,-289.639726,0.000144,2]
[420383855,1776058246519,-532.519357,0.000144,2]
[420383856,1776058246532,-289.639726,0.000144,2]
[420383857,1776058246591,-8361.199389,0.000144,2]
[420383858,1776058246603,-1620.280468,0.000144,2]
[420383859,1776058246622,-151.0,0.000144,2]
[420383860,1776058246647,-532.519357,0.000144,2]
[420383861,1776058246663,-289.639726,0.000144,2]
[420383862,1776058246697,-8361.199389,0.000144,2]
[420383863,1776058246722,-532.519357,0.000144,2]
[420383864,1776058246735,-289.639726,0.000144,2]
[420383865,1776058246748,-8361.199389,0.000144,2]
[420383866,1776058246770,-8361.199389,0.000144,2]
[420383867,1776058246784,-532.519357,0.000144,2]
[420383868,1776058246812,-289.639726,0.000144,2]
[420383869,1776058246826,-532.519357,0.000144,2]
[420383870,1776058246836,-289.639726,0.000144,2]
[420383871,1776058246853,-532.519357,0.000144,2]
[420383872,1776058246863,-1620.280468,0.000144,2]
[420383873,1776058246879,-289.639726,0.000144,2]
[420383874,1776058246890,-8361.199389,0.000144,2]
[420383875,1776058246913,-532.519357,0.000144,2]
[420383876,1776058246923,-8050.42267923,0.000144,2]
[420383877,1776058246940,-310.77670977,0.000144,2]
[420383878,1776058246952,-289.639726,0.000144,2]
[420383879,1776058246968,-4752.05544778,0.000144,2]
[420383972,1776059432006,-5000.0,8.91e-05,2]
[420383974,1776059432029,-545.0,8.91e-05,2]
[420383976,1776059432042,-164.48,9e-05,2]
[420383978,1776059432078,-438.14355033,0.00011543,2]
[420383980,1776059432095,-931.47644967,0.0001166,2]
[420383983,1776059432126,-698.00772091,0.0001166,2]
[420383985,1776059432143,-162.16987261,0.00011698,2]
[420383987,1776059432164,-1231.47277644,0.00011753,2]
[420383989,1776059432175,-635.82436495,0.00011778,2]
[420384007,1776059438546,-564.17563505,0.00011778,2]
[420384008,1776059438564,-300.0,0.00011778,2]
[420384009,1776059438574,-300.0,0.00011851,2]
[420384010,1776059438584,-300.0,0.00011851,2]
[420384011,1776059438595,-2443.58171175,0.00011853,2]
[420384012,1776059438611,-3655.69064706,0.00011953,2]
[420384014,1776059438620,-177.0,0.00011958,2]
[420384015,1776059438633,-4822.98189572,0.00012153,2]
[420384016,1776059438646,-6079.90851769,0.00012453,2]
[420384017,1776059438658,-6370.89197042,0.00012553,2]
[420384018,1776059438671,-5862.8145955,0.00012867,2]
[420384019,1776059438685,-547.18717493,0.00012996,2]
[420384020,1776059438704,-2186.55995103,0.00012996,2]
[420384021,1776059438719,-420.0,0.00013012,2]
[420384022,1776059438748,-7292.017453,0.00013483,2]
[420384023,1776059438771,-1000.0,0.000135,2]
[420384024,1776059438806,-676.49287419,0.000135,3]
[420384025,1776059438861,-323.50712581,0.000135,3]
[420384026,1776059438875,-496.89038454,0.0001368,2]
[420384027,1776059438919,-167.443575,0.00013699,2]
[420384028,1776059438945,-1000.0,0.00013699,2]
[420384029,1776059438967,-543.23606094,0.000138,4]
[420384030,1776059439014,-456.76393906,0.000138,4]
[420384031,1776059439040,-1000.0,0.000138,5]
[420384032,1776059439050,-166.93327153,0.0001398,2]
[420384033,1776059439073,-537.6845,0.0001398,2]
[420384034,1776059439083,-200.58689394,0.0001398,2]
[420384035,1776059439094,-2150.738,0.0001398,2]
[420384036,1776059439328,-151.0,0.0001398,2]
[420384037,1776059439343,-152.511093,0.0001398,2]
[420384038,1776059439368,-152.511093,0.0001398,2]
[420384039,1776059439376,-151.0,0.0001398,2]
[420384040,1776059439385,-152.511093,0.0001398,2]
[420384041,1776059439416,-151.0,0.0001398,2]
[420384042,1776059439426,-152.511093,0.0001398,2]
[420384043,1776059439475,-151.0,0.0001398,2]
[420384044,1776059439500,-246.025044,0.0001398,2]
[420384045,1776059439510,-386.360114,0.0001398,2]
[420384046,1776059439520,-386.360114,0.0001398,2]
[420384047,1776059439536,-386.360114,0.0001398,2]
[420384048,1776059439550,-386.360114,0.0001398,2]
[420384049,1776059439761,-151.0,0.0001398,2]
[420384050,1776059439772,-234.424323,0.0001398,2]
[420384051,1776059439782,-234.424323,0.0001398,2]
[420384052,1776059439793,-234.424323,0.0001398,2]
[420384053,1776059439804,-234.424323,0.0001398,2]
[420384054,1776059439813,-557.5788265,0.00014035,2]
[420384055,1776059439823,-578.20924308,0.0001409,2]
[420384056,1776059439834,-599.60298507,0.00014145,2]
[420384057,1776059439846,-500.0,0.000142,2]
[420384058,1776059439856,-621.78829552,0.000142,2]
[420384059,1776059439867,-1000.0,0.000142,6]
[420384060,1776059439883,-644.79446246,0.00014255,2]
[420384061,1776059439895,-587.0,0.00014286,2]
[420384062,1776059439913,-41594.79641609,0.00014292,2]
[420384063,1776059439928,-3768.18521745,0.00014292,2]
[420384077,1776059441155,-151.0,0.0001398,2]
[420384078,1776059441170,-168.23480473,0.00014186,2]
[420384079,1776059441191,-7138.67744666,0.00014292,2]
[420384080,1776059441229,-1596.52469909,0.00014292,2]
[420384081,1776059441407,-2243.08747746,0.0001166,2]
[420384082,1776059441741,-341.44406342,0.0001166,2]
[420384100,1776059449481,-1099.1263862,0.0001166,2]
[420384103,1776059449660,-1246.62269966,0.0001166,2]
[420384104,1776059449704,-69.71937326,0.0001166,2]
[420384105,1776059449723,-151.0,0.00014292,2]
[420384106,1776059449750,-7256.77728743,0.00014292,2]
[420384107,1776059449782,-760.69687761,0.00014292,2]
[420384108,1776059449852,-1504.3502,0.00014292,2]
[420384109,1776059449874,-454.96465952,0.00014292,2]
[420384110,1776059449892,-17850.30844583,0.00014292,2]
[420384111,1776059449910,-76342.93069183,0.00014292,2]
[420384122,1776060100070,-162.65475837,0.00010973,2]
[420384123,1776060100086,-1233.10418541,0.00010973,2]
[420384124,1776060100099,-162.65475837,0.00010973,2]
[420384183,1776060461895,728.552,0.0001,30]
[420384241,1776060634210,-425.97873272,4.706e-05,2]
[420384242,1776060634226,-531.51072655,4.706e-05,2]
[420384243,1776060634285,-593.02716987,4.706e-05,2]
[420384244,1776060634303,-3449.48337086,4.706e-05,2]
[420384245,1776060634320,-604.0,4.754e-05,2]
[420384246,1776060634330,-300.0,4.999e-05,2]
[420384247,1776060634357,-493.39804632,5e-05,2]
[420384261,1776060638804,-5162.7176763,5e-05,2]
[420384262,1776060638823,-420.0,5.499e-05,2]
[420384263,1776060638844,-296.62197707,5.929e-05,2]
[420384264,1776060638883,-182.01318,8.028e-05,2]
[420384265,1776060638898,-821.83284944,8.244e-05,2]
[420384266,1776060638927,-4266.74457706,8.244e-05,2]
[420384268,1776060638941,-1000.0,8.5e-05,2]
[420384270,1776060638957,-1000.0,8.5e-05,2]
[420384272,1776060638990,-1000.0,8.5e-05,2]
[420384273,1776060639020,-1000.0,8.5e-05,2]
[420384274,1776060639043,-1000.0,8.5e-05,2]
[420384275,1776060639069,-1000.0,8.5e-05,2]
[420384276,1776060639108,-1000.0,8.5e-05,2]
[420384277,1776060639173,-182.01318,9.718e-05,2]
[420384278,1776060639188,-153.64894742,0.0001,2]